bitfinex/quotes_ETHUSD_20240718
["timestamp","ask_amount","ask_price","bid_price","bid_amount"]
[1721268301956,2.3981,3440.6,3439.6,2.90725]
[1721268302132,5.30461,3440.6,3439.5,2.90739]
[1721268302321,5.30461,3440.6,3439.4,2.90748]
[1721268302657,3.31,3440.2,3438.9,2.90788]
[1721268302859,6.21684,3440.2,3438.9,2.90784]
[1721268303057,6.21684,3440.2,3439.0,2.90776]
[1721268303222,4.18115096,3440.5,3439.4,2.90746]
[1721268304229,2.90664,3440.4,3439.4,2.90746]
[1721268304434,3.77073505,3440.4,3439.4,2.90746]
[1721268304967,0.86409505,3440.4,3439.4,2.90746]
[1721268305853,3.77073505,3440.4,3439.0,2.90778]
[1721268306058,2.90681,3440.2,3439.0,2.90778]
[1721268306476,2.90681,3440.2,3438.7,7.39]
[1721268306477,2.3981,3440.6,3439.6,2.90725]
[1721268306658,2.3981,3440.6,3439.7,0.581471]
[1721268306986,2.3981,3440.6,3439.2,2.90758]
[1721268306987,2.90664,3440.4,3439.2,2.90758]
[1721268307276,2.3981,3440.6,3439.6,2.9073]
[1721268307431,5.30457,3440.6,3439.6,2.9073]
[1721268307931,2.90673,3440.3,3439.3,2.90754]
[1721268308156,5.30459,3440.6,3439.3,3.489056]
[1721268308157,2.90665,3440.4,3439.3,3.489056]
[1721268308393,2.90672,3440.3,3439.3,0.581516]
[1721268308672,2.90663,3440.5,3439.4,2.90747]
[1721268308976,2.90666,3440.4,3439.3,0.581516]
[1721268309174,3.727869,3440.3,3439.0,2.90779]
[1721268309487,3.727869,3440.3,3438.7,7.39]
[1721268309488,2.9069,3440.1,3438.7,7.39]
[1721268309636,3.31,3440.2,3438.7,10.29806]
[1721268309637,2.90718,3439.8,3438.7,10.29806]
[1721268309971,2.90718,3439.8,3438.7,2.90806]
[1721268310175,5.2872,3440.0,3438.8,2.90796]
[1721268310335,6.5355339,3440.0,3438.9,2.90788]
[1721268310538,6.5355339,3440.0,3439.3,2.90756]
[1721268310539,2.3802,3440.0,3439.3,2.90756]
[1721268310861,2.3802,3440.0,3439.1,2.90768]
[1721268311235,2.3802,3440.0,3438.9,2.90784]
[1721268311452,2.3802,3440.0,3439.0,2.90782]
[1721268311838,2.3802,3440.0,3439.1,2.90771]
[1721268312038,2.3802,3440.0,3439.2,2.90765]
[1721268312253,2.3802,3440.0,3439.3,2.90755]
[1721268313170,2.3802,3440.0,3439.0,2.90779]
[1721268313400,3.3220059,3440.0,3439.0,2.90779]
[1721268313901,3.3220059,3440.0,3439.1,2.90772]
[1721268314258,2.90732,3439.6,3438.4,7.39]
[1721268314556,6.21724,3439.7,3438.6,2.90813]
[1721268314759,0.912438,3439.6,3438.7,2.90805]
[1721268316199,3.819758,3439.6,3438.5,2.90818]
[1721268316559,3.819758,3439.6,3438.6,2.90815]
[1721268316757,3.819758,3439.6,3438.4,10.29832]
[1721268316758,3.819758,3439.6,3438.4,2.90832]
[1721268317069,3.819758,3439.6,3438.5,2.90823]
[1721268317258,0.912438,3439.6,3438.6,2.90813]
[1721268317459,3.31,3439.7,3438.6,2.90813]
[1721268317771,2.90719,3439.8,3438.6,2.90813]
[1721268317966,2.90719,3439.8,3438.7,2.90804]
[1721268318959,2.90719,3439.8,3438.6,2.90813]
[1721268319308,2.90719,3439.8,3438.7,2.90807]
[1721268319469,3.3220059,3440.0,3437.9,7.39]
[1721268319470,2.90749,3439.4,3438.1,2.90851]
[1721268319677,3.31,3439.1,3438.0,2.90864]
[1721268319882,6.21774,3439.1,3437.8,2.90881]
[1721268320111,0.57863,3439.0,3437.3,2.90921]
[1721268320406,3.48646,3439.0,3437.7,2.90887]
[1721268320616,3.48646,3439.0,3437.8,2.90877]
[1721268320766,3.48646,3439.0,3437.9,2.90874]
[1721268320969,0.970411,3438.9,3437.9,2.90874]
[1721268322077,0.970411,3438.9,3437.7,2.90887]
[1721268322281,0.970411,3438.9,3437.4,2.90914]
[1721268322282,2.90824,3438.5,3437.4,2.90914]
[1721268324485,3.31,3438.6,3437.5,2.90907]
[1721268325517,6.21816,3438.6,3437.5,2.90907]
[1721268326207,2.90825,3438.5,3437.3,2.90925]
[1721268326578,2.90825,3438.5,3437.1,2.90941]
[1721268326579,2.90852,3438.2,3437.1,2.90941]
[1721268326779,2.3531,3438.0,3437.1,2.90941]
[1721268327017,2.3531,3438.0,3436.9,2.90954]
[1721268327188,2.3531,3438.0,3437.0,2.90951]
[1721268327189,3.31,3437.9,3437.0,2.90951]
[1721268328928,3.31,3437.9,3436.9,2.90957]
[1721268329079,3.31,3437.9,3437.0,2.9095]
[1721268329397,3.31,3437.9,3436.9,2.90956]
[1721268329719,3.31,3437.9,3436.6,2.90983]
[1721268330079,3.31,3437.9,3436.9,2.90957]
[1721268330280,6.21876,3437.9,3436.8,2.90967]
[1721268330519,1.148045,3437.8,3436.6,2.90979]
[1721268330816,4.056875,3437.8,3436.7,2.90974]
[1721268331034,1.148045,3437.8,3436.9,2.90959]
[1721268331184,3.31,3437.9,3436.9,2.90959]
[1721268331387,6.21882,3437.9,3436.8,2.90967]
[1721268331824,2.90884,3437.8,3436.5,2.90991]
[1721268332127,2.90884,3437.8,3435.3,3.52910869]
[1721268332128,2.90918,3437.4,3436.0,3.0]
[1721268332448,0.290918,3437.3,3436.3,2.91004]
[1721268332789,3.200188,3437.3,3436.1,2.91025]
[1721268333083,3.200188,3437.3,3435.6,2.91065]
[1721268333084,3.200188,3437.3,3436.0,2.91035]
[1721268333435,3.200188,3437.3,3436.3,2.91009]
[1721268333728,2.90901,3437.6,3436.5,2.90986]
[1721268334023,2.9091,3437.5,3436.4,2.91001]
[1721268334187,3.0,3437.6,3435.8,2.91047]
[1721268334188,2.90951,3437.0,3435.8,2.91049]
[1721268334389,3.200461,3437.0,3435.9,2.91038]
[1721268334583,2.2755,3436.9,3435.9,2.91038]
[1721268335327,2.2755,3436.9,3436.0,2.91035]
[1721268335837,2.2755,3436.9,3436.1,2.91026]
[1721268337616,2.2755,3436.9,3436.0,2.91035]
[1721268337815,0.518493,3436.8,3436.1,2.91026]
[1721268338016,2.2755,3436.9,3435.8,3.201549]
[1721268338533,2.2755,3436.9,3436.1,2.91027]
[1721268339321,2.2755,3436.9,3435.3,7.39]
[1721268339537,2.2755,3436.9,3435.8,2.91046]
[1721268340035,2.90977,3436.7,3434.6,0.45618496]
[1721268340225,2.90994,3436.5,3435.4,2.9108]
[1721268340432,2.492,3436.4,3435.4,2.91084]
[1721268340602,2.492,3436.4,3435.1,2.91109]
[1721268340797,2.492,3436.4,3435.4,2.91085]
[1721268341297,5.40203,3436.4,3435.3,2.91092]
[1721268341528,0.54590205,3436.3,3435.3,2.91092]
[1721268341822,0.54590205,3436.3,3435.4,2.91085]
[1721268343250,0.54590205,3436.3,3435.2,2.91097]
[1721268343403,0.54590205,3436.3,3435.5,2.91076]
[1721268343600,2.2755,3436.9,3434.9,0.2749885]
[1721268343854,2.2755,3436.9,3436.4,2.91001]
[1721268344004,2.2755,3436.9,3436.2,2.91015]
[1721268344206,2.2755,3436.9,3436.3,2.9101]
[1721268344732,2.2755,3436.9,3435.9,2.91039]
[1721268344901,2.2755,3436.9,3436.0,2.91032]
[1721268345107,2.2755,3436.9,3436.1,2.91026]
[1721268346329,2.492,3437.1,3436.1,2.91026]
[1721268346517,2.492,3437.1,3436.4,2.91002]
[1721268347200,2.2542,3437.4,3436.4,2.91002]
[1721268347804,2.2542,3437.4,3436.6,2.90979]
[1721268348928,2.93,3437.8,3437.1,2.90936]
[1721268349139,2.4945,3437.9,3437.1,2.90936]
[1721268349930,2.4945,3437.9,3437.2,2.90933]
[1721268350542,2.4945,3437.9,3437.3,2.90918]
[1721268350740,2.4945,3437.9,3437.5,2.90903]
[1721268350955,5.8145,3438.4,3437.5,2.90903]
[1721268351255,2.4945,3438.4,3437.5,2.90903]
[1721268351561,2.4945,3438.4,3436.4,3.0]
[1721268351562,2.9086,3438.1,3436.9,2.90958]
[1721268351782,2.9086,3438.1,3436.7,2.90976]
[1721268351917,2.90889,3437.8,3436.8,2.90967]
[1721268352121,2.90867,3438.0,3436.9,2.90955]
[1721268352347,2.90867,3438.0,3437.0,2.9095]
[1721268352527,3.490469,3437.9,3436.8,2.90967]
[1721268352747,3.490469,3437.9,3436.9,2.90958]
[1721268352934,0.581719,3437.9,3436.9,2.90958]
[1721268353130,3.15788,3438.3,3437.0,2.90943]
[1721268353131,3.15787,3438.3,3437.0,2.90943]
[1721268353356,2.90858,3438.1,3437.0,2.90943]
[1721268354657,3.32,3437.9,3436.4,2.91001]
[1721268354856,2.909,3437.6,3436.4,2.91001]
[1721268355166,2.90919,3437.4,3436.3,2.9101]
[1721268355364,2.90926,3437.3,3436.3,2.9101]
[1721268355658,2.90926,3437.3,3436.0,2.91033]
[1721268355659,2.90926,3437.3,3436.1,2.9102]
[1721268355868,2.90926,3437.3,3436.2,2.91015]
[1721268356033,0.634809,3437.2,3436.2,2.91015]
[1721268356558,0.634809,3437.2,3436.3,2.91009]
[1721268357354,3.43883,3437.5,3436.1,2.9102]
[1721268357558,3.43883,3437.5,3436.4,2.91001]
[1721268358125,2.90918,3437.4,3436.4,2.91001]
[1721268358552,5.8186,3437.3,3436.2,2.91018]
[1721268358750,5.23308,3437.2,3435.9,2.91037]
[1721268358969,3.723744,3437.1,3435.7,2.91059]
[1721268359257,3.723744,3437.1,3435.4,3.0]
[1721268359258,2.90965,3436.9,3435.8,2.91052]
[1721268359559,2.90965,3436.9,3435.6,2.91069]
[1721268360063,2.90953,3437.0,3435.9,2.91043]
[1721268360567,2.3237,3437.2,3436.1,2.91025]
[1721268360724,2.3237,3437.2,3436.3,2.91008]
[1721268361132,2.3237,3437.2,3436.4,2.91002]
[1721268361517,2.3237,3437.2,3436.3,2.9101]
[1721268361832,2.4776,3437.8,3436.2,0.291025]
[1721268362053,2.4776,3437.8,3436.8,2.90966]
[1721268362232,7.31,3438.1,3437.3,2.90924]
[1721268362446,2.4776,3438.3,3437.3,2.90924]
[1721268362784,2.4776,3438.3,3437.4,2.90916]
[1721268363232,2.4776,3438.3,3437.2,2.90932]
[1721268363627,2.90851,3438.2,3437.1,2.90942]
[1721268363966,2.4776,3438.3,3436.7,2.90975]
[1721268363967,2.90884,3437.8,3436.7,2.90975]
[1721268364319,2.90884,3437.8,3436.5,2.90993]
[1721268364725,2.90906,3437.6,3436.4,2.91]
[1721268364967,2.3551,3437.4,3436.4,2.91]
[1721268365173,2.3551,3437.4,3436.2,3.201195]
[1721268365174,2.3551,3437.4,3436.5,2.90992]
[1721268365821,2.3551,3437.4,3436.4,2.90996]
[1721268366061,2.881519,3437.4,3436.5,2.9099]
[1721268366422,5.790709,3437.4,3436.2,0.291025]
[1721268366627,5.26429,3437.4,3436.2,2.91015]
[1721268366854,5.26429,3437.4,3436.3,2.91009]
[1721268367024,5.26429,3437.4,3436.2,2.91013]
[1721268367225,5.26429,3437.4,3436.0,2.91033]
[1721268367426,2.90934,3437.2,3436.0,3.201363]
[1721268367662,2.90952,3437.0,3435.9,2.91043]
[1721268369146,2.9097,3436.8,3435.7,2.9106]
[1721268369341,2.9097,3436.8,3435.4,3.51560793]
[1721268369342,2.9097,3436.8,3435.8,2.91052]
[1721268369538,2.9097,3436.8,3435.6,2.91064]
[1721268369743,2.90944,3437.1,3435.8,2.91051]
[1721268369943,3.6435869,3437.0,3435.8,2.91051]
[1721268370148,5.7686,3436.9,3435.4,3.51565793]
[1721268370347,2.90985,3436.6,3435.4,3.51565793]
[1721268370552,2.90985,3436.6,3435.5,2.91078]
[1721268370866,2.90994,3436.5,3435.5,2.91078]
[1721268371064,0.58197,3436.4,3435.5,2.91078]
[1721268371433,2.90994,3436.5,3435.5,2.91078]
[1721268372627,2.91003,3436.4,3435.4,0.60479793]
[1721268372828,5.7686,3436.9,3435.4,0.60479793]
[1721268372829,2.91011,3436.3,3435.4,0.60479793]
[1721268373054,5.30783,3436.1,3435.4,0.60479793]
[1721268373253,1.153794,3436.0,3435.4,0.60479793]
[1721268373868,1.153794,3436.0,3435.2,2.93694217]
[1721268373869,4.064164,3436.0,3435.2,2.02369311]
[1721268374172,2.91047,3435.9,3434.7,2.91145]
[1721268374665,2.91047,3435.9,3434.8,2.91136]
[1721268374866,1.05908595,3435.8,3434.8,2.91136]
[1721268375168,1.05908595,3435.8,3434.7,2.91146]
[1721268375169,2.91061,3435.7,3434.7,2.91146]
[1721268375374,2.91061,3435.7,3434.6,2.91154]
[1721268375667,1.05908595,3435.8,3434.8,2.91131]
[1721268375882,2.9105,3435.9,3434.8,2.91131]
[1721268376080,2.9105,3435.9,3434.6,2.91152]
[1721268376081,2.91045,3435.9,3434.6,2.91154]
[1721268376247,2.91069,3435.7,3434.6,2.91154]
[1721268377067,2.91054,3435.8,3434.7,2.91141]
[1721268377463,2.91061,3435.7,3434.7,2.91141]
[1721268377658,2.91061,3435.7,3434.7,3.49372]
[1721268377861,4.064154,3436.0,3434.5,2.91161]
[1721268377862,1.153794,3436.0,3434.5,2.91161]
[1721268378065,1.21872554,3435.9,3434.5,2.91161]
[1721268378247,2.91071,3435.6,3434.6,2.91154]
[1721268378758,2.9106,3435.8,3434.7,2.91145]
[1721268379275,1.153794,3436.0,3434.3,2.91174]
[1721268379477,5.30778,3436.1,3435.0,2.91118]
[1721268379832,2.3975,3436.1,3435.0,2.91118]
[1721268380072,5.30778,3436.1,3435.1,2.9111]
[1721268380282,2.91036,3436.0,3435.0,2.91118]
[1721268381073,2.91036,3436.0,3434.8,2.91137]
[1721268381372,4.18614855,3435.9,3434.8,2.91137]
[1721268381944,4.18614855,3435.9,3434.6,2.91152]
[1721268381945,2.91061,3435.7,3434.7,2.91144]
[1721268382277,2.91061,3435.7,3434.6,2.91152]
[1721268382278,4.18617855,3435.9,3434.8,2.91136]
[1721268382457,2.91053,3435.8,3434.8,2.91136]
[1721268382780,1.27567855,3435.9,3434.9,2.91126]
[1721268382940,1.27567855,3435.9,3434.9,0.582262]
[1721268383139,2.3975,3436.1,3435.0,0.05822046]
[1721268383341,2.4183,3436.6,3435.6,2.91064]
[1721268384193,2.4183,3436.6,3435.7,2.91061]
[1721268384538,1.52009349,3437.1,3435.1,2.91104]
[1721268384539,1.21872554,3437.2,3435.8,0.05821219]
[1721268384740,2.4436,3437.3,3435.1,3.32]
[1721268384741,3.66232554,3437.3,3436.0,2.91035]
[1721268384981,1.21872554,3437.7,3436.1,0.291035]
[1721268385181,2.4436,3437.8,3437.1,2.90935]
[1721268386050,2.4436,3437.8,3436.9,2.90958]
[1721268386240,2.4436,3437.8,3436.8,2.90964]
[1721268386442,2.90894,3437.7,3436.1,7.39]
[1721268386684,2.90901,3437.6,3436.1,2.91026]
[1721268386859,2.90924,3437.4,3436.1,2.91026]
[1721268387192,2.90928,3437.3,3436.1,2.91026]
[1721268387394,2.90928,3437.3,3436.2,2.91018]
[1721268387963,2.90966,3436.9,3435.8,2.9105]
[1721268388164,5.30051,3437.1,3435.9,2.9104]
[1721268388375,1.54934955,3437.0,3435.9,2.9104]
[1721268388714,4.45889955,3437.0,3435.9,2.91044]
[1721268388862,2.90959,3436.9,3435.7,2.91056]
[1721268389067,1.54934955,3437.0,3435.9,2.91043]
[1721268389772,4.45887955,3437.0,3435.9,2.91043]
[1721268390098,2.391,3437.1,3435.2,2.4521]
[1721268390302,2.391,3437.1,3436.2,2.91018]
[1721268390493,2.391,3437.1,3436.3,2.91009]
[1721268391694,2.391,3437.1,3436.5,2.90993]
[1721268391863,0.841761,3437.5,3436.5,2.90993]
[1721268392070,0.841761,3437.5,3436.6,2.90978]
[1721268392271,2.2824,3437.6,3436.8,2.9096]
[1721268392691,2.2824,3437.6,3436.9,2.90957]
[1721268394519,2.2824,3437.6,3436.7,2.90975]
[1721268394672,2.2824,3437.6,3436.8,2.90968]
[1721268394888,2.2824,3437.6,3436.9,2.90959]
[1721268395089,2.801515,3437.6,3436.7,2.90969]
[1721268395622,2.801515,3437.6,3436.4,2.91001]
[1721268395921,2.2824,3437.6,3436.5,2.90992]
[1721268396127,2.2824,3437.6,3436.4,2.91001]
[1721268396697,2.2824,3437.6,3436.5,2.90988]
[1721268397597,2.2824,3437.6,3436.2,2.91016]
[1721268397598,2.90909,3437.5,3436.3,2.91005]
[1721268397798,0.519149,3437.4,3436.4,2.90999]
[1721268398011,0.519149,3437.4,3436.0,2.91034]
[1721268398341,2.90927,3437.3,3436.1,2.91021]
[1721268398501,2.90936,3437.2,3436.1,2.91021]
[1721268398701,3.0062779,3437.1,3436.1,2.91021]
[1721268398909,5.9157079,3437.1,3435.9,2.91039]
[1721268399253,5.9157079,3437.1,3435.1,5.7732]
[1721268399254,2.90969,3436.8,3435.6,2.91068]
[1721268399535,2.90956,3437.0,3435.9,2.91044]
[1721268400034,5.9157079,3437.1,3435.9,2.91044]
[1721268400239,3.0062779,3437.1,3436.0,0.291044]
[1721268400522,3.0062779,3437.1,3436.2,2.91018]
[1721268401091,3.0062779,3437.1,3436.0,2.91031]
[1721268401406,2.9096,3436.9,3435.9,2.91038]
[1721268401608,5.9157379,3437.1,3436.0,2.91035]
[1721268401911,2.90961,3436.9,3435.7,2.9106]
[1721268402310,1.00438334,3437.0,3435.9,2.91037]
[1721268402628,3.91391334,3437.0,3436.0,2.91035]
[1721268402798,1.00438334,3437.0,3436.0,2.91035]
[1721268403933,3.91389334,3437.0,3436.0,2.91035]
[1721268404135,3.89255312,3436.9,3435.8,2.91047]
[1721268404434,3.89255312,3436.9,3435.9,2.91042]
[1721268404927,3.89255312,3436.9,3435.7,2.9106]
[1721268405232,3.89255312,3436.9,3435.8,2.91052]
[1721268405526,0.9808261,3436.8,3435.9,2.91043]
[1721268406394,2.9098,3436.7,3435.6,2.91067]
[1721268406592,2.90986,3436.6,3435.5,2.91074]
[1721268406992,2.431,3436.4,3435.5,2.91074]
[1721268407598,2.431,3436.4,3435.6,2.91065]
[1721268407799,2.431,3436.4,3435.6,0.582139]
[1721268408107,2.431,3436.4,3435.5,2.91074]
[1721268408505,2.431,3436.4,3435.4,2.91085]
[1721268409304,5.34103,3436.4,3435.4,2.91085]
[1721268409710,5.34103,3436.4,3434.9,2.491]
[1721268409711,2.431,3436.4,3435.5,2.91077]
[1721268410203,2.19955164,3436.8,3435.3,2.91091]
[1721268410423,3.9808261,3436.8,3435.9,2.91044]
[1721268410626,3.9808261,3436.8,3436.0,2.91035]
[1721268410627,0.9808261,3436.8,3436.0,2.91035]
[1721268410794,2.3907,3436.9,3436.0,2.91035]
[1721268411135,2.3907,3436.9,3435.8,2.91047]
[1721268411500,5.30036,3436.9,3435.8,2.91047]
[1721268411701,2.90969,3436.8,3435.8,2.91047]
[1721268411912,5.30036,3436.9,3435.3,2.491]
[1721268411913,2.90993,3436.5,3435.3,2.491]
[1721268412111,0.290993,3436.4,3435.5,2.91077]
[1721268412404,0.290993,3436.4,3435.6,2.91069]
[1721268412612,2.3907,3436.9,3435.4,2.9108]
[1721268412613,2.90994,3436.5,3435.4,2.9108]
[1721268412821,2.90994,3436.5,3435.1,2.91109]
[1721268412822,2.3555,3436.3,3435.1,2.91109]
[1721268413137,2.3555,3436.3,3435.3,2.91095]
[1721268413438,2.3555,3436.3,3435.4,2.91086]
[1721268414642,5.2656,3436.3,3435.3,2.91091]
[1721268414850,0.23555,3436.2,3435.3,2.91091]
[1721268416046,0.23555,3436.2,3435.4,2.91086]
[1721268416660,0.23555,3436.2,3435.2,2.91103]
[1721268416812,0.23555,3436.2,3435.3,2.91094]
[1721268417151,0.550108,3436.1,3435.1,2.91106]
[1721268417304,3.460378,3436.1,3435.1,2.91106]
[1721268418227,2.91036,3436.0,3435.0,2.9112]
[1721268418543,2.91036,3436.0,3435.1,2.9111]
[1721268418771,2.91036,3436.0,3434.5,2.491]
[1721268418772,2.91036,3436.0,3434.9,2.91123]
[1721268419053,3.5710788,3435.9,3434.8,2.91132]
[1721268419252,2.91045,3435.9,3434.8,2.91132]
[1721268420103,2.91061,3435.7,3434.6,2.91152]
[1721268420308,2.91061,3435.7,3434.7,2.91146]
[1721268420544,1.21872554,3436.0,3434.7,5.40237]
[1721268420757,3.460408,3436.1,3435.0,2.91118]
[1721268420906,2.91036,3436.0,3435.0,2.91118]
[1721268422067,3.57422554,3436.3,3435.2,2.91099]
[1721268422386,9.5801,3436.8,3435.8,2.91052]
[1721268422520,2.2701,3436.8,3435.8,2.91052]
[1721268422724,2.2701,3436.8,3436.0,2.9103]
[1721268425053,2.2701,3436.8,3436.3,2.91008]
[1721268426013,3.0,3437.3,3435.0,3.88435246]
[1721268426014,3.59172554,3437.3,3436.6,2.90978]
[1721268426160,3.59172554,3437.8,3436.7,3.491738]
[1721268426356,2.373,3437.8,3436.7,3.491738]
[1721268426856,5.28184,3437.8,3436.7,3.491738]
[1721268427095,2.373,3437.8,3436.7,2.90976]
[1721268427294,2.373,3437.8,3436.8,2.90968]
[1721268427500,2.373,3437.8,3436.3,2.491]
[1721268427501,2.373,3437.8,3436.9,2.90956]
[1721268427870,2.373,3437.8,3436.3,2.491]
[1721268428476,2.373,3437.8,3437.1,2.90941]
[1721268428804,3.57072554,3438.3,3437.3,2.90917]
[1721268429107,0.50929255,3438.2,3437.3,2.90917]
[1721268430015,2.352,3438.3,3437.8,2.90882]
[1721268430162,2.352,3438.3,3437.6,2.90892]
[1721268430356,2.352,3438.3,3437.3,2.90918]
[1721268430357,2.352,3438.3,3437.4,2.90912]
[1721268430669,2.352,3438.3,3437.7,2.90891]
[1721268431992,2.352,3438.3,3437.8,2.9088]
[1721268432190,2.352,3438.3,3437.9,2.90875]
[1721268434810,2.352,3438.3,3437.7,2.90891]
[1721268435017,2.352,3438.3,3437.5,2.90908]
[1721268435163,2.5872,3438.3,3437.7,2.9089]
[1721268435561,2.352,3438.3,3437.8,2.90883]
[1721268435802,2.3663,3438.8,3438.0,2.90866]
[1721268437784,2.3663,3438.8,3438.2,2.90843]
[1721268438801,2.3663,3438.8,3437.9,2.9087]
[1721268439407,2.3663,3438.8,3438.0,2.90866]
[1721268439607,0.527412,3438.7,3437.8,2.90881]
[1721268439807,2.3663,3438.8,3437.9,2.90875]
[1721268440492,2.3663,3438.8,3437.4,3.0]
[1721268440493,2.3663,3438.8,3438.2,2.90842]
[1721268440691,2.3663,3438.8,3438.3,2.90839]
[1721268440890,2.2599,3439.4,3438.3,2.90839]
[1721268441214,3.507615,3439.4,3438.8,2.90797]
[1721268441573,3.507615,3439.4,3438.1,2.90854]
[1721268441574,2.2599,3439.4,3438.7,2.90807]
[1721268441772,2.2599,3439.4,3438.8,2.90799]
[1721268441973,2.2599,3439.4,3437.8,5.482]
[1721268441974,2.2599,3440.1,3438.9,2.90782]
[1721268442172,5.1668,3440.1,3439.0,2.90779]
[1721268442882,2.90706,3439.9,3438.8,2.90792]
[1721268443206,0.807386,3439.8,3438.8,2.90792]
[1721268444381,0.807386,3439.8,3438.4,2.9083]
[1721268444382,2.2599,3439.6,3438.4,2.9083]
[1721268444602,2.2599,3439.6,3438.5,2.90823]
[1721268445372,2.2599,3439.6,3438.7,2.90806]
[1721268445597,5.16721,3439.6,3438.5,2.90823]
[1721268445809,5.16721,3439.6,3438.6,2.90815]
[1721268446004,0.516721,3439.5,3438.6,2.90815]
[1721268446305,0.516721,3439.5,3438.7,2.90807]
[1721268446722,0.516721,3439.5,3438.8,2.90797]
[1721268447270,2.2599,3439.6,3438.9,2.90788]
[1721268449679,2.2599,3439.6,3438.8,2.90797]
[1721268450004,2.2599,3439.6,3438.9,2.90789]
[1721268450219,2.2599,3439.6,3438.8,2.90798]
[1721268450809,2.2599,3439.6,3438.6,2.90813]
[1721268450810,2.2599,3439.6,3438.5,3.0]
[1721268451010,2.2599,3439.6,3438.4,2.90831]
[1721268451230,2.2599,3439.6,3438.0,2.491]
[1721268451231,2.90758,3439.3,3438.2,2.90843]
[1721268451411,2.90758,3439.3,3438.1,2.90856]
[1721268452200,2.9074,3439.5,3438.4,2.90831]
[1721268452699,2.9074,3439.5,3438.5,2.90819]
[1721268452897,0.807454,3439.4,3438.5,2.90819]
[1721268453424,2.90748,3439.4,3438.4,2.90832]
[1721268454127,2.90748,3439.4,3438.3,2.90841]
[1721268454493,2.90757,3439.3,3438.3,2.90841]
[1721268455018,2.90757,3439.3,3438.2,2.90843]
[1721268455200,2.90757,3439.3,3438.3,2.90835]
[1721268455740,2.90757,3439.3,3438.0,5.39963]
[1721268455904,2.90765,3439.2,3438.1,3.0]
[1721268456261,2.90765,3439.2,3438.2,2.90848]
[1721268456795,2.2599,3439.6,3438.1,3.0]
[1721268457032,2.2599,3439.6,3437.9,2.90873]
[1721268457033,2.90782,3439.0,3438.0,3.0]
[1721268457739,2.90782,3439.0,3438.0,5.90862]
[1721268458210,2.4817,3438.9,3437.7,2.90891]
[1721268458421,2.4817,3438.9,3437.8,3.0]
[1721268458422,2.908,3438.8,3437.8,3.0]
[1721268458764,2.908,3438.8,3437.8,5.90882]
[1721268458898,2.908,3438.8,3437.9,2.90874]
[1721268459104,2.4817,3438.9,3437.9,2.90874]
[1721268459301,2.4817,3438.9,3438.1,2.90854]
[1721268461403,7.31,3439.6,3438.3,2.90841]
[1721268461404,5.16561,3439.4,3438.3,2.90841]
[1721268461611,2.90756,3439.3,3438.3,2.90841]
[1721268462414,2.2581,3439.4,3438.3,2.90841]
[1721268462640,2.2581,3439.4,3438.5,2.90818]
[1721268463933,5.16559,3439.4,3438.3,5.81675]
[1721268464134,5.16559,3439.4,3438.0,2.491]
[1721268464135,5.16559,3439.4,3438.4,2.90832]
[1721268464381,5.97249,3439.4,3438.4,2.90832]
[1721268464526,2.90793,3438.9,3437.8,3.0]
[1721268464721,2.90793,3438.9,3437.4,3.0]
[1721268464952,2.90793,3438.9,3437.9,2.90875]
[1721268465650,2.2581,3439.3,3437.9,2.90875]
[1721268465651,2.90799,3438.8,3437.9,2.90875]
[1721268466655,2.90799,3438.8,3437.7,2.90885]
[1721268466863,2.90799,3438.8,3437.8,3.0]
[1721268467237,2.90799,3438.8,3437.8,5.90881]
[1721268467438,2.90799,3438.8,3437.8,3.0]
[1721268468361,2.2634,3438.6,3437.8,3.0]
[1721268468528,2.2634,3438.6,3437.7,2.90885]
[1721268468727,2.2634,3438.6,3437.5,5.81809]
[1721268469055,2.2634,3438.6,3437.7,2.90891]
[1721268470260,2.90824,3438.5,3437.6,3.0]
[1721268470566,2.90824,3438.5,3437.5,5.90908]
[1721268471156,2.90824,3438.5,3437.5,3.0]
[1721268471646,2.90824,3438.5,3437.5,5.90907]
[1721268472226,2.90824,3438.5,3437.6,2.909]
[1721268474690,2.2634,3438.6,3437.7,2.9670956]
[1721268474983,2.2634,3438.6,3437.9,2.90873]
[1721268475274,2.2634,3438.6,3437.8,2.90883]
[1721268477044,2.2634,3438.6,3437.6,2.90894]
[1721268477361,2.2634,3438.6,3437.8,2.90882]
[1721268477770,2.2634,3438.6,3437.6,5.81788]
[1721268477936,2.2634,3438.6,3437.5,3.0]
[1721268478278,2.90832,3438.4,3437.4,2.90917]
[1721268478472,4.12704554,3438.4,3437.4,2.90917]
[1721268478677,2.90864,3438.1,3436.7,1.51728434]
[1721268478972,4.12736554,3438.1,3436.3,1.51728434]
[1721268479177,4.12736554,3438.1,3436.4,1.011633]
[1721268479178,1.21872554,3438.0,3436.4,1.011633]
[1721268479382,1.21872554,3438.0,3436.2,8.39270473]
[1721268479682,1.21872554,3438.0,3436.3,1.01166376]
[1721268479851,2.90877,3437.9,3436.8,2.90959]
[1721268480178,2.90877,3437.9,3436.6,2.9098]
[1721268480179,6.56231554,3437.7,3436.6,2.9098]
[1721268481549,1.21872554,3437.6,3436.6,2.9098]
[1721268481748,6.56231554,3437.7,3436.7,2.90975]
[1721268481981,6.56231554,3437.7,3436.5,2.90991]
[1721268482276,1.21872554,3437.6,3436.6,5.90984]